[Event "XXXI Torre Memorial 2019"]
[Site "Merida"]
[Date "2019.12.18"]
[Round "9.18"]
[White "Cu Hor, Winston Darwin"]
[Black "Drazic, Sinisa"]
[Result "0-1"]
[ECO "A37"]
[WhiteElo "2307"]
[BlackElo "2371"]
[Annotator "ChessBase"]
[PlyCount "142"]
[EventDate "2019.12.13"]
[EventType "swiss"]
[EventCountry "MEX"]
[SourceTitle "playchess.com"]
[Source "ChessBase"]
[SourceQuality "1"]
[TimeControl "5400+30"]

1. Nf3 g6 {[%emt 0:06:48]} 2. c4 {[%emt 0:05:19]} Bg7 {[%emt 0:00:08]} 3. Nc3 {[%emt 0:00:06]} c5 {[%emt 0:02:30]} 4. g3 {[%emt 0:03:01]} Nc6 {[%emt 0:00:06]} 5. Bg2 {[%emt 0:00:04]} e5 {[%emt 0:00:07]} 6. d3 {[%emt 0:00:05]} Nge7 {[%emt 0:00:07]} 7. Nd2 {[%emt 0:00:28]} d6 {[%emt 0:01:47]} 8. Nf1 {[%emt 0:00:37]} O-O {[%emt 0:04:14]} 9. Ne3 {[%emt 0:00:05]} Rb8 {[%emt 0:00:33]} 10. O-O {[%emt 0:04:44]} a6 {[%emt 0:00:04]} 11. b3 {[%emt 0:07:08]} b5 {[%emt 0:03:54]} 12. Bb2 {[%emt 0:00:52]} Be6 {[%emt 0:00:22]} 13. Ned5 {[%emt 0:00:35]} Qd7 {[%emt 0:00:17]} 14. e3 {[%emt 0:03:12]} f5 {[%emt 0:05:38]} 15. Qd2 {[%emt 0:03:37]} Bf7 {[%emt 0:00:11]} 16. f4 {[%emt 0:02:01]} bxc4 {[%emt 0:09:02]} 17. dxc4 {[%emt 0:03:45]} e4 {[%emt 0:00:03]} 18. Nxe4 {[%emt 0:07:15]} Nxd5 {[%emt 0:06:32]} 19. Bxg7 {[%emt 0:04:33]} Kxg7 {[%emt 0:00:40]} 20. cxd5 {[%emt 0:00:33]} fxe4 {[%emt 0:00:39]} 21. dxc6 {[%emt 0:00:15]} Qxc6 {[%emt 0:00:03]} 22. f5 {[%emt 0:00:52]} d5 {[%emt 0:00:20]} 23. Rac1 {[%emt 0:01:20]} Kg8 {[%emt 0:04:08]} 24. Qc3 {[%emt 0:01:30]} Rbc8 {[%emt 0:01:35]} 25. Bh3 {[%emt 0:06:07]} g5 {[%emt 0:06:57]} 26. f6 {[%emt 0:01:51]} Rc7 {[%emt 0:00:05]} 27. Qe5 {[%emt 0:00:43]} h6 {[%emt 0:00:05]} 28. Rf5 {[%emt 0:02:33]} Kh8 {[%emt 0:00:13]} 29. Rf2 {[%emt 0:11:28]} Qb6 {[%emt 0:06:12]} 30. Bf1 {[%emt 0:02:22]} Re8 {[%emt 0:00:15]} 31. Qf5 {[%emt 0:01:06]} Qe6 {[%emt 0:03:13]} 32. h4 {[%emt 0:01:25]} Qxf5 {[%emt 0:03:51]} 33. Rxf5 {[%emt 0:00:03]} gxh4 {[%emt 0:00:22]} 34. gxh4 {[%emt 0:00:31]} Rc6 {[%emt 0:09:39]} 35. Be2 {[%emt 0:01:00]} Rec8 {[%emt 0:02:01]} 36. Kf2 {[%emt 0:01:40]} c4 {[%emt 0:08:07]} 37. bxc4 {[%emt 0:01:26]} dxc4 {[%emt 0:00:01]} 38. Rc3 {[%emt 0:01:20]} Rc5 {[%emt 0:01:13]} 39. Rf4 {[%emt 0:00:16]} Re5 {[%emt 0:00:18]} 40. Bg4 {[%emt 0:02:04]} Rc6 {[%emt 0:01:56]} 41. Ke1 {[%emt 0:01:02]} h5 {[%emt 0:01:56]} 42. Bh3 {[%emt 0:01:14]} Kg8 {[%emt 0:00:57]} 43. Bg2 {[%emt 0:00:32]} Bd5 {[%emt 0:00:33]} 44. Bf1 {[%emt 0:00:48]} Kf7 {[%emt 0:01:32]} 45. Be2 {[%emt 0:00:15]} Kg6 {[%emt 0:00:34]} 46. Kd2 {[%emt 0:01:29]} Rd6 {[%emt 0:03:26]} 47. Rc1 {[%emt 0:00:44]} Rxf6 {[%emt 0:00:43]} 48. Bxc4 {[%emt 0:00:57]} Bxc4 {[%emt 0:00:22]} 49. Rxc4 {[%emt 0:00:31]} Rd5+ {[%emt 0:00:16]} 50. Ke2 {[%emt 0:00:13]} Rxf4 {[%emt 0:00:05]} 51. exf4 {[%emt 0:00:27]} Kf5 {[%emt 0:00:01]} 52. Ra4 {[%emt 0:01:53]} Rd6 {[%emt 0:02:53]} 53. Ke3 {[%emt 0:00:12]} Rd3+ {[%emt 0:00:10]} 54. Ke2 {[%emt 0:00:05]} Rh3 {[%emt 0:00:38]} 55. Rxa6 {[%emt 0:00:11]} Rxh4 {[%emt 0:00:14]} 56. a4 Rh2+ {[%emt 0:01:29]} 57. Ke3 {[%emt 0:00:43]} Rh3+ {[%emt 0:00:05]} 58. Ke2 {[%emt 0:00:18]} h4 {[%emt 0:00:27]} 59. Ra8 {[%emt 0:01:27]} Ra3 {[%emt 0:00:06]} 60. Rh8 {[%emt 0:01:39]} h3 {[%emt 0:00:16]} 61. Kf2 {[%emt 0:03:19]} Rf3+ {[%emt 0:01:27]} 62. Ke2 {[%emt 0:00:22]} Kxf4 {[%emt 0:01:04]} 63. Rf8+ Kg3 {[%emt 0:00:16]} 64. Rg8+ {[%emt 0:01:38]} Kh2 {[%emt 0:00:00]} 65. Rg4 {[%emt 0:05:20]} Rg3 66. Rf4 {[%emt 0:00:52]} Ra3 {[%emt 0:02:17]} 67. Rxe4 Kg2 {[%emt 0:00:00]} 68. Rg4+ {[%emt 0:03:31]} Rg3 69. Rf4 h2 {[%emt 0:00:17]} 70. Rf2+ {[%emt 0:00:10]} Kh3 {[%emt 0:00:04]} 71. Rf8 {[%emt 0:00:04]} h1=Q 0-1